Cogmind - Beta 10.2 @@@ ROGUE MODE // 2021.06.24 @ 14:58:49 Player: Finestep Result: Destroyed by M Guard with Hellfire Missile Launcher Performance ------------- Evolutions (9) 4500 Regions Visited (29) 5800 Robots Destroyed (316) 1580 Value Destroyed (9580) 9580 Prototype IDs (78) 1560 Alien Tech Used (11) 2200 Bonus (476) 476 TOTAL SCORE: 25696 Bonus ------- High Alert Combat Kills 476 Follower Combat Kills 910 Met Data Miner 300 MAIN.C Attacked Warlord 500 Friendly Fire -1710 Cogmind --------- Core Integrity 0/1600 Matter 420/425 Energy 92/350 System Corruption 0% Temperature Cool (9) Movement Core (50) Location -1/Command Parts ------- > --- POWER (2) -------- (None) > --- PROPULSION (6) --- (None) > --- UTILITY (15) ----- (None) > --- WEAPON (2) ------- (None) > --- INVENTORY (4) ---- (None) Peak State ------------ > --- POWER ------------ Mini Fusion Reactor Light Quantum Reactor > --- PROPULSION ------- Electron Diverter Electron Diverter Impulse Thruster Array Impulse Thruster Array > --- UTILITY ---------- Advanced Power Amplifier Large Storage Unit Large Storage Unit Quantum Shading Machine Experimental Sensor Array Experimental Signal Interpreter Experimental Terrain Scan Processor Advanced Melee Analysis Suite Advanced Transmission Jammer Experimental ECM Suite Experimental Propulsion Shielding Experimental Utility Shielding Improved Powered Armor Improved Hacking Suite Ghost Barrier > --- WEAPON ----------- Null Cannon Enhanced Force Lance > --- INVENTORY -------- Vortex Chain Reactor Impulse Thruster Array Improved Energy Well Long-range Terrain Scanner Advanced Armor Integrity Analyzer Advanced Reaction Control System Advanced Phase Shifter AEGIS Remote Shield High-powered Transdimensional Reconstructor Integrity Redistributor Integrity Redistributor Subatomic Replicator Mini Smartbomb Launcher Force Lance [Rating: 191] Favorites ----------- Power Micro Fission Core Engine Heavy Deuterium Engine Power Core Micro Fission Core Reactor Mini Fusion Reactor Propulsion Impulse Thruster Array Treads Medium Treads Leg Enhanced Flexi-carbon Leg Wheel Armored Huge Wheel Flight Unit Impulse Thruster Array Utility Large Storage Unit Device Experimental Sensor Array Storage Large Storage Unit Processor Experimental Terrain Scan Processor Hackware Advanced Hacking Suite Protection Experimental Utility Shielding Artifact Phase Redirector Weapon Advanced Beam Cannon Energy Gun Small Laser Energy Cannon Advanced Beam Cannon Ballistic Gun Flak Gun Ballistic Cannon Assault Cannon Launcher Proton Missile Launcher Slashing Weapon Plasma Sword Piercing Weapon Force Lance Special Melee Weapon Advanced Datajack Build | -11 -10 -10 -9 -9 -9 -8 -8 -7 -7 -7 -7 -6 -6 -6 -6 -5 -5 -5 -4 -4 -4 -3 -3 -3 -2 -2 -2 -1 -1 ------- Run | Scr Mat Min Mat Min Exi Min Mat Fac Low Low Dat Pro Fac Was Fac Fac Was Fac Fac Upp War Pro Res Tes Res Qua Sec Acc Com Slots Evolved 18 | . . . 2 . . . 2 2 . . . . 2 . . 2 . . 2 . . . 2 . 2 . . 2 . Power 1 | . . . . . . . . . . . . . . . . 1 . . . . . . . . . . . . . Propulsion 4 | . . . 1 . . . . . . . . . 2 . . . . . . . . . . . 1 . . . . Utility 13 | . . . 1 . . . 2 2 . . . . . . . 1 . . 2 . . . 2 . 1 . . 2 . Weapon . | . . . . . . . . . . . . . . . . . . . . . . . . . . . . . . Parts Attached 523 | 7 20 9 23 2 4 2 38 49 14 5 18 3 27 11 17 23 . 12 38 1 14 3 20 33 14 19 50 30 17 Power 31 | 1 3 2 3 . . . 2 6 . . 1 . 1 2 . 1 . 2 . . . . 3 . 1 . . 1 2 Engine 17 | 1 3 1 3 . . . 2 6 . . . . . . . . . 1 . . . . . . . . . . . Core 8 | . . 1 . . . . . . . . . . 1 2 . 1 . 1 . . . . 2 . . . . . . Reactor 6 | . . . . . . . . . . . 1 . . . . . . . . . . . 1 . 1 . . 1 2 Propulsion 70 | 2 6 3 4 2 . . 8 9 1 . 5 . 6 5 2 4 . 2 4 . 3 . . 2 1 . . . 1 Treads 22 | 2 6 3 2 1 . . 2 5 . . 1 . . . . . . . . . . . . . . . . . . Leg 7 | . . . . . . . 3 . . . 4 . . . . . . . . . . . . . . . . . . Wheel 7 | . . . 2 1 . . 2 1 1 . . . . . . . . . . . . . . . . . . . . Hover . | . . . . . . . . . . . . . . . . . . . . . . . . . . . . . . Flight 34 | . . . . . . . 1 3 . . . . 6 5 2 4 . 2 4 . 3 . . 2 1 . . . 1 Utility 224 | 2 2 . 6 . 4 . 12 11 5 2 6 1 17 2 9 12 . 5 18 1 7 1 12 18 9 15 25 10 12 Device 123 | . . . . . 1 . 4 1 1 . . 1 11 1 4 9 . 2 14 1 3 1 8 11 6 9 20 8 7 Storage 19 | 2 2 . 1 . 1 . 4 1 1 . 1 . 1 . 1 1 . . . . . . . . . . 2 . 1 Processor 13 | . . . . . . . 2 1 . 1 1 . 1 . . 1 . . 2 . 1 . . . . 1 . 1 1 Hackware 13 | . . . . . . . . 3 . . 2 . 2 . . 1 . 1 . . . . 2 1 . . . 1 . Protection 54 | . . . 5 . 2 . 2 5 3 1 2 . 2 1 4 . . 2 2 . 3 . 2 6 3 3 3 . 3 Artifact 2 | . . . . . . . . . . . . . . . . . . . . . . . . . . 2 . . . Weapon 198 | 2 9 4 10 . . 2 16 23 8 3 6 2 3 2 6 6 . 3 16 . 4 2 5 13 3 4 25 19 2 Energy Gun 6 | 1 2 1 1 . . . . . . . . . . . . . . . . . . . . 1 . . . . . Energy Cannon 74 | . . 2 3 . . . 10 5 . . . . 2 1 4 6 . 2 6 . 1 . 4 6 . 1 12 9 . Ballistic Gun 34 | 1 6 . 1 . . . 2 8 5 2 2 1 . . . . . . 4 . . . 1 1 . . . . . Ballistic Cannon 18 | . . 1 4 . . 2 2 8 . . . . . . . . . . 1 . . . . . . . . . . Launcher 19 | . 1 . 1 . . . 2 2 3 1 2 1 . . . . . . 2 . . 1 . . 1 . . 2 . Special Weapon . | . . . . . . . . . . . . . . . . . . . . . . . . . . . . . . Impact Weapon . | . . . . . . . . . . . . . . . . . . . . . . . . . . . . . . Slashing Weapon 6 | . . . . . . . . . . . . . . . . . . . 2 . 3 1 . . . . . . . Piercing Weapon 40 | . . . . . . . . . . . 2 . 1 1 2 . . 1 . . . . . 5 2 3 13 8 2 Special Melee Weapon 1 | . . . . . . . . . . . . . . . . . . . 1 . . . . . . . . . . Unidentified Prototypes 34 | . . . 4 . 1 . 3 4 . . 4 . 1 . . . . . . . 3 . 1 5 . 2 6 . . Parts Lost 33 | . 2 . . . . 3 . 2 . . 2 . 1 2 1 . 1 . 1 . . . . . 1 . . 1 16 Power 3 | . . . . . . . . . . . . . . . . . 1 . . . . . . . 1 . . . 1 Propulsion 4 | . . . . . . . . . . . . . . . 1 . . . . . . . . . . . . . 3 Utility 17 | . . . . . . 1 . 1 . . 1 . 1 1 . . . . . . . . . . . . . 1 11 Weapon 9 | . 2 . . . . 2 . 1 . . 1 . . 1 . . . . 1 . . . . . . . . . 1 Highest Loss Streak 14 | . 1 . . . . 2 . 1 . . 2 . 1 2 1 . 1 . 1 . . . . . 1 . . 1 14 Average Slot Usage (%) 88 | . 98 99 99 100 94 85 82 78 71 76 81 92 97 92 99 91 79 85 88 89 91 94 94 90 90 90 90 90 83 Engine 4 | . 13 . 9 11 11 11 8 6 7 7 5 . . . . . . . . . . . . . . . . . . Core 3 | . . 13 1 . . . . . . . . . 5 5 5 11 8 8 10 10 10 10 8 9 7 4 4 2 . Treads 8 | . 27 28 23 22 22 22 7 6 7 7 5 7 . . . . . . . . . . . . . . . . . Wheel 3 | . . . 9 11 11 11 8 7 7 7 4 . . . . . . . . . . . . . . . . . . Flight 8 | . . . . . . . . . . . . . 33 32 32 22 14 17 14 15 17 21 19 14 17 17 17 16 15 Device 5 | . . . . . . . 9 2 4 . . 6 5 6 5 4 5 4 9 10 6 8 9 9 9 15 15 19 22 Storage 14 | . 28 28 24 33 23 11 18 14 15 15 15 15 6 6 6 6 11 11 10 10 10 10 9 9 8 8 10 9 6 Processor 3 | . . . . . . . 2 . . . . . 5 6 6 5 5 5 10 10 10 10 9 9 8 8 8 11 11 Hackware 11 | . . . . . . . . 16 15 15 14 15 19 20 20 23 23 23 21 21 21 21 26 23 18 11 8 7 4 Protection 5 | . . . 8 . 4 9 5 5 6 7 9 7 5 5 6 3 . . . . 3 1 1 3 8 10 13 12 10 Energy Cannon 4 | . . 11 4 22 22 12 14 6 . . . . 4 . 5 2 2 3 2 . . . 2 2 2 . . 1 1 Ballistic Gun 3 | . 18 . . . . . . 5 4 14 7 14 . . . . . . 1 5 5 5 4 3 . . . . . Ballistic Cannon 2 | . . 13 16 . . 8 2 2 . . . . . . . . . . . . . . . . . . . . . Piercing Weapon 1 | . . . . . . . . . . . 4 . 5 6 6 5 5 4 . . . . . 1 4 7 7 5 5 Naked Turns 17 | . . . . . . . . . . . . . . . . . . . . . . . . . . . . . 17 Heaviest Build 155 | 15 41 49 57 56 104 103 130 155 154 154 152 151 33 32 31 56 56 54 57 53 53 53 62 65 78 83 87 96 100 Greatest Support 100 | 40 40 46 69 12 12 12 54 28 28 28 84 56 33 35 36 56 56 56 57 57 62 62 82 83 80 80 80 100 100 Greatest Overweight (x) 12 | . 12 1 4 4 8 8 8 5 5 5 5 2 . . . . . . . . . . . 1 . 1 1 1 . Average Overweight (x) 1 | . . . 3 4 5 8 3 4 4 4 3 2 . . . . . . . . . . . . . . . . . Largest Inventory Capacity 52 | 8 16 16 20 20 28 24 32 32 52 32 32 32 32 8 10 16 16 16 16 16 16 16 16 16 16 16 16 16 16 Average Capacity 20 | 6 13 16 16 20 21 24 30 31 32 32 32 32 8 8 8 11 16 16 16 16 16 16 16 16 16 16 16 16 13 Most Carried 32 | 3 16 16 20 20 24 23 32 32 32 32 32 32 32 8 10 16 16 16 16 16 16 16 16 16 16 16 16 16 16 Average Carried 20 | 2 10 15 16 19 19 22 30 31 31 31 31 31 8 7 8 11 16 15 15 16 15 16 15 15 15 15 15 15 12 Final Capacity 32 | 8 16 16 20 20 24 24 32 32 32 32 32 32 8 8 10 16 16 16 16 16 16 16 16 16 16 16 16 16 4 Final Carried 32 | 3 16 16 20 20 23 23 32 32 32 32 32 32 7 8 10 16 16 16 16 16 16 16 16 16 16 16 16 16 . Class Distribution -------------------- 39% | Hauler-Mutant 15% | Mutant 10% | Wizard-Scout 8% | Machinist-Ninja 7% | Wizard-Sprinter 5% | Wizard-Mutant 5% | Hacker-Mutant 4% | Hacker-Sprinter Dominant Class ---------------- Mutant | -10/Materials Mutant | -10/Mines Mutant | -9/Materials Hauler-Mutant | -9/Mines Hauler-Mutant | -9/Exiles Hauler-Mutant | -8/Mines Hauler-Mutant | -8/Materials Hauler-Mutant | -7/Factory Hauler-Mutant | -7/Lower Caves Hauler-Mutant | -7/Lower Caves Hacker-Mutant | -7/Data Miner Hacker-Mutant | -6/Proximity Caves Wizard-Sprinter | -6/Factory Hacker-Sprinter | -6/Waste Hacker-Sprinter | -6/Factory Wizard-Sprinter | -5/Factory Wizard-Mutant | -5/Waste Wizard-Mutant | -5/Factory Wizard-Scout | -4/Factory Wizard-Scout | -4/Upper Caves Wizard-Sprinter | -4/Warlord Wizard-Scout | -3/Proximity Caves Wizard-Scout | -3/Research Wizard-Scout | -3/Testing Wizard-Scout | -2/Research Machinist-Ninja | -2/Quarantine Machinist-Ninja | -2/Section 7 Machinist-Ninja | -1/Access Machinist-Ninja | -1/Command Resources | -11 -10 -10 -9 -9 -9 -8 -8 -7 -7 -7 -7 -6 -6 -6 -6 -5 -5 -5 -4 -4 -4 -3 -3 -3 -2 -2 -2 -1 -1 ----------- Run | Scr Mat Min Mat Min Exi Min Mat Fac Low Low Dat Pro Fac Was Fac Fac Was Fac Fac Upp War Pro Res Tes Res Qua Sec Acc Com Matter Collected 9317 | 275 285 316 1107 47 27 193 711 1147 423 140 215 54 370 106 140 250 . 151 495 . 125 165 268 240 274 267 458 635 433 Remotely 471 | . . . . . . . 471 . . . . . . . . . . . . . . . . . . . . . . Salvage Created 15787 | 99 613 209 1213 287 . 128 1432 2323 568 232 470 91 911 153 959 396 . 611 737 . . 118 337 183 420 620 576 967 1134 Parts 784 | 6 42 18 81 10 . 17 69 107 24 8 19 2 36 9 35 35 . 22 20 . . 2 9 6 25 21 44 70 47 Haulers Intercepted 43 | . 2 . 5 . . . 5 8 . . . . 3 . 5 2 . 2 3 . . . 2 . 2 1 1 2 . Recyclers Shooed 22 | . 1 . 2 1 . . 2 8 . . . 1 1 . 2 . . . 2 . . . . 2 . . . . . Parts Field Recycled . | . . . . . . . . . . . . . . . . . . . . . . . . . . . . . . Retrieved Matter . | . . . . . . . . . . . . . . . . . . . . . . . . . . . . . . Parts Self-Destructed 32 | . . . . . . . . . 8 2 . . . . . . . . . . 18 4 . . . . . . . Prevented 28 | . . . . . . . . . 5 3 . . . . . . . . . . 20 . . . . . . . . Kills | -11 -10 -10 -9 -9 -9 -8 -8 -7 -7 -7 -7 -6 -6 -6 -6 -5 -5 -5 -4 -4 -4 -3 -3 -3 -2 -2 -2 -1 -1 ------- Run | Scr Mat Min Mat Min Exi Min Mat Fac Low Low Dat Pro Fac Was Fac Fac Was Fac Fac Upp War Pro Res Tes Res Qua Sec Acc Com Combat Hostiles Destroyed 155 | . 13 9 23 7 . 10 17 15 11 3 4 4 1 . 2 . . 1 . . . 2 . . 7 . 5 12 9 Melee 27 | . . . . . . . . . . . . . 1 . 2 . . 1 . . . . . . 2 . 5 7 9 Guns 19 | . 9 1 1 . . . 1 4 3 . . . . . . . . . . . . . . . . . . . . Cannons 69 | . . 8 19 7 . 10 15 10 . . . . . . . . . . . . . . . . . . . . . AOE 32 | . 4 . 3 . . . 1 . 6 2 . 4 . . . . . . . . . 2 . . 5 . . 5 . Classes Destroyed 18 | 2 6 . 3 2 . 1 . 2 1 . . . . . . . . . . . . . . . . . . . 1 Worker 23 | . 1 . 2 . . . 1 7 . . . . 4 . 2 3 . 1 . . . . . . . 1 . . 1 Builder 6 | . . . 2 . . . 1 . . . . . . . . . . . . . . . . . . 1 1 1 . Tunneler 2 | 1 . 1 . . . . . . . . . . . . . . . . . . . . . . . . . . . Hauler 43 | . 2 . 5 . . . 5 8 . . . . 3 . 5 2 . 2 3 . . . 2 . 2 1 1 2 . Recycler 46 | 1 . 1 3 2 . . 5 14 . . . . 4 . 2 . . 3 3 . . . 1 1 . 4 . 1 1 Mechanic 2 | . . . . . . . . 1 . . . . . . . . . . . . . . . . . . . . 1 Operator 8 | . 1 . 2 . . . 3 . . . . . . . 1 . . . . . . . . . . . . 1 . Watcher 26 | . 1 . 4 . . . 1 2 . . . . . . 2 6 . . 3 . . . . 1 . 1 2 2 1 Swarmer 53 | . 3 8 8 3 . 9 3 . 5 . . 4 . . . . . 1 . . . . . . 5 . . 4 . Saboteur 1 | . . . . . . . . . . . . . . . . . . . . . . . . . . . . . 1 Grunt 40 | . 10 1 8 1 . . 4 5 3 3 . . . . 1 . . . . . . . . . . . . . 4 Brawler 1 | . . . . . . . . . 1 . . . . . . . . . . . . . . . . . . . . Duelist 2 | . . . 1 . . . . . 1 . . . . . . . . . . . . . . . . . . . . Sentry 21 | . . . 7 . . . 6 5 1 . . . . . . . . . . . . . . . 1 . 1 . . Demolisher 1 | . . . . 1 . . . . . . . . . . . . . . . . . . . . . . . . . Hunter 7 | . . . . . . 1 4 . . . . . . . . . . . . . . 2 . . . . . . . Programmer 22 | . . . . . . . . 5 . . . . 1 . 1 . . . . . . . . . 1 . 4 8 2 Enhanced Grunt 4 | . . . . . . . . . . . 4 . . . . . . . . . . . . . . . . . . Combat Programmer 2 | . . . . . . . . . . . . . . . . . . . . . . . . . . . . . 2 Decomposer 2 | . . . . . . . . . . . . . . . . . . . . . . 2 . . . . . . . Packrat 1 | . . . . . . . . . . . . 1 . . . . . . . . . . . . . . . . . Assembled 2 | . . . . 2 . . . . . . . . . . . . . . . . . . . . . . . . . Wasp 1 | . . . . . . . . . . . . . . 1 . . . . . . . . . . . . . . . Savage 2 | . . . . . . . . . 1 1 . . . . . . . . . . . . . . . . . . . Martyr 2 | . . . . . . . . . . . . . . 2 . . . . . . . . . . . . . . . Best Kill Streak 6 | 1 4 4 5 3 . 3 5 5 5 3 4 4 6 . 3 1 . 2 2 . . 2 2 1 5 2 2 4 4 Combat Bots Only 5 | . 4 3 5 3 . 3 3 2 5 3 4 4 1 . 1 . . 1 . . . 2 . . 5 . 2 3 4 Max Kills in Single Turn 4 | 1 3 2 4 2 . 1 1 2 3 1 1 3 1 1 1 1 . 1 1 . . 1 1 1 3 1 1 2 1 Gunslinging . | . . . . . . . . . . . . . . . . . . . . . . . . . . . . . . Exploded 3 | . 3 . 3 . . . 1 . 3 1 . 3 . . . . . . . . . 1 . . 3 . . 2 . Melee 1 | . . . . . . . . . . . . . 1 . 1 . . 1 . . . . . . 1 . 1 1 1 Uniques/NPCs Destroyed 1 | . . . . . . . . . . . 1 . . . . . . . . . . . . . . . . . . Data Miner (-7/Data Miner) Combat | -11 -10 -10 -9 -9 -9 -8 -8 -7 -7 -7 -7 -6 -6 -6 -6 -5 -5 -5 -4 -4 -4 -3 -3 -3 -2 -2 -2 -1 -1 -------- Run | Scr Mat Min Mat Min Exi Min Mat Fac Low Low Dat Pro Fac Was Fac Fac Was Fac Fac Upp War Pro Res Tes Res Qua Sec Acc Com Damage Taken 12493 | . 483 332 808 151 . 538 1154 1215 896 124 597 60 . 90 75 66 102 215 229 . . 21 27 181 365 42 406 528 3788 Core 2620 | . 107 47 122 8 . 15 113 29 110 5 46 . . 45 . 22 . 64 60 . . 7 . . 109 42 107 18 1544 Absorbed by Shields 715 | . . . . . . . . . . . . . . . . . . . . . . 18 . . . . 30 24 643 Core Remaining (%) 80 | 100 . 38 . . . 63 79 . . . . 72 . . 94 . . 91 . . . 94 . 100 . . 69 . . Volleys Fired 800 | 6 62 27 88 16 . 40 85 140 25 10 9 6 12 . 6 29 . 5 63 . . 6 46 34 3 5 30 37 10 Largest 2 | 2 2 2 2 2 . 2 2 2 2 2 1 2 1 . 1 1 . 1 1 . . 1 1 2 1 1 1 1 1 Hottest 170 | 60 85 107 136 136 . 136 136 136 56 56 39 56 90 . 90 98 . 90 105 . . 80 105 170 80 130 130 130 130 Shots Fired 1233 | 12 120 46 166 32 . 67 161 276 36 14 9 8 12 . 6 29 . 5 63 . . 6 46 35 3 5 29 37 10 Gun 348 | 12 119 11 14 . . . 10 121 22 8 . 4 . . . . . . 7 . . . 19 1 . . . . . Cannon 830 | . . 35 151 32 . 67 148 154 . . . . 12 . 6 29 . 5 54 . . . 27 34 . 5 29 32 10 Launcher 55 | . 1 . 1 . . . 3 1 14 6 9 4 . . . . . . 2 . . 6 . . 3 . . 5 . Special . | . . . . . . . . . . . . . . . . . . . . . . . . . . . . . . Kinetic 529 | 6 82 19 148 . . 33 26 149 22 8 . 4 . . . . . . 12 . . . 19 1 . . . . . Thermal 601 | 6 33 . 4 32 . 34 132 126 . . . . 12 . 6 29 . 5 45 . . . 27 34 . 5 29 32 10 Explosive 28 | . 1 . 1 . . . 3 1 2 . . 4 . . . . . . 2 . . 6 . . 3 . . 5 . Electromagnetic 75 | . 4 27 13 . . . . . 12 6 9 . . . . . . . 4 . . . . . . . . . . Robot Hit Streak 18 | 8 17 7 18 7 . 9 8 12 11 6 7 8 . . . . . . 9 . . . 13 1 . . . . . Robot Miss Streak 6 | 1 6 5 3 3 . 2 6 6 6 4 . 3 . . . . . . 3 . . . 1 1 . . . . . Penetration Max . | . . . . . . . . . . . . . . . . . . . . . . . . . . . . . . Secondary Targets 2 | . 1 . . . . . . . 1 . . . . . . . . . . . . . . . . . . . . Max Gunslinging Chain 1 | . 1 . . . . . . . 1 . . . . . . . . . . . . . . . . . . . . Shots Hit Robots 817 | 8 69 19 106 19 . 35 86 181 24 10 5 4 16 8 35 14 . 11 32 . . 2 18 9 5 15 18 29 39 Core Hits 466 | 3 37 11 50 10 . 11 47 79 29 12 11 10 13 3 18 11 . 7 14 . . 5 4 2 12 8 13 25 21 Critical Hits 46 | . 1 . 3 4 . 3 4 14 . . . . 1 . 1 1 . 1 . . . . 2 2 1 . 3 4 1 Critical Kills 22 | . . . 2 1 . 2 4 3 . . . . . . 1 1 . 1 . . . . . . 1 . 2 3 1 Critical Parts Destroyed 21 | . 1 . 1 3 . 1 . 10 . . . . . . . . . . . . . . 1 2 . . 1 1 . Melee Attacks 523 | . . . . . . . . . . . 1 . 31 8 59 47 . 18 24 . 5 4 21 22 16 48 80 77 62 Impact . | . . . . . . . . . . . . . . . . . . . . . . . . . . . . . . Slashing 45 | . . . . . . . . . . . . . . . . . . . 15 . 5 4 21 . . . . . . Piercing 478 | . . . . . . . . . . . 1 . 31 8 59 47 . 18 9 . . . . 22 16 48 80 77 62 Sneak Attacks 86 | . . . . . . . . . . . 1 . 12 8 14 7 . 6 4 . . 2 4 4 3 7 6 5 3 Combat Hostiles 3 | . . . . . . . . . . . . . 1 . 1 . . . . . . . . . 1 . . . . Follow-up Attacks 13 | . . . . . . . . . . . . . . . . . . . . . . . . . 1 2 3 2 5 Damage Inflicted 32861 | 89 824 412 2603 412 . 766 2412 3586 1005 391 559 470 1335 675 2004 1191 . 943 1734 . . 764 588 966 988 1306 1488 2646 2704 Guns 3024 | 89 642 41 170 . . . 99 1343 366 144 . 74 . . . . . . 16 . . . 40 . . . . . . Cannons 8774 | . . 368 2235 412 . 746 2131 2165 . . . . . . . . . . 717 . . . . . . . . . . Explosions 4120 | . 173 . 197 . . . 182 78 639 247 456 396 . . . 82 . 23 . . . 534 . . 495 . . 618 . Melee 16910 | . . . . . . . . . . . 103 . 1335 675 2004 1109 . 920 1001 . . 230 548 966 493 1306 1488 2028 2704 Ramming 33 | . 9 3 1 . . 20 . . . . . . . . . . . . . . . . . . . . . . . Kinetic 6041 | 43 410 203 2061 . . 358 302 1900 366 144 . 74 . . . . . . 140 . . . 40 . . . . . . Thermal 5282 | 46 206 . 61 412 . 388 1928 1608 . 51 . . . . . 82 . 23 477 . . . . . . . . . . Explosive 2839 | . 135 . 197 . . . 182 78 204 . . 396 . . . . . . . . . 534 . . 495 . . 618 . Electromagnetic 1756 | . 64 206 283 . . . . . 435 196 456 . . . . . . . 116 . . . . . . . . . . Impact . | . . . . . . . . . . . . . . . . . . . . . . . . . . . . . . Slashing 1471 | . . . . . . . . . . . . . . . . . . . 693 . . 230 548 . . . . . . Piercing 15439 | . . . . . . . . . . . 103 . 1335 675 2004 1109 . 920 308 . . . . 966 493 1306 1488 2028 2704 Highest Corruption 14 | . . 1 3 3 3 3 . 14 14 1 1 1 4 4 . 1 7 7 2 . . . . 1 3 3 4 . . Average Corruption 4 | . . 1 2 3 3 3 . 9 7 1 1 1 3 2 . 1 4 7 1 . . . . 1 2 2 3 . . Corruption Purged 23 | . . . . . . . . . 14 . . . . 4 . . . . 2 . . . . . . 3 . . . Effects 289 | . . 1 24 17 7 18 . 72 63 6 1 5 19 4 . 4 1 15 5 . . . . . . 4 23 . . Message Errors 78 | . . 1 9 2 2 5 . 12 21 2 1 3 4 1 . . . 5 2 . . . . . . 1 7 . . Matter Fused 50 | . . . 1 4 1 4 . 9 16 . . . 5 1 . . . 3 . . . . . . . 1 5 . . Heat Flow Errors 39 | . . . 3 7 . 3 . 5 7 . . . 8 1 . . . 4 . . . . . . . 1 . . . Energy Discharges 35 | . . . 4 2 2 2 . 7 9 3 . 1 . . . 1 1 . . . . . . . . 1 2 . . Data Loss (minor) 39 | . . . 3 2 2 1 . 12 7 . . 1 2 . . 3 . 1 1 . . . . . . . 4 . . Data Loss (major) 7 | . . . . . . . . 4 2 . . . . . . . . 1 . . . . . . . . . . . Misfires 3 | . . . . . . . . 3 . . . . . . . . . . . . . . . . . . . . . Alerts 1 | . . . . . . . . 1 . . . . . . . . . . . . . . . . . . . . . Misdirections 9 | . . . . . . . . 8 1 . . . . . . . . . . . . . . . . . . . . Targeting Errors 23 | . . . 2 . . 2 . 10 . 1 . . . 1 . . . 1 2 . . . . . . . 4 . . Weapon Failures 5 | . . . 2 . . 1 . 1 . . . . . . . . . . . . . . . . . . 1 . . Overload Shots . | . . . . . . . . . . . . . . . . . . . . . . . . . . . . . . Overflow Damage 1816 | . . 2 . . . 3 98 21 6 9 . . 96 . 322 213 . 19 278 . . 11 40 150 . 269 147 13 119 Projectiles 125 | . . 2 . . . 3 66 21 . . . . . . . . . . 33 . . . . . . . . . . Explosions 58 | . . . . . . . 32 . 6 9 . . . . . . . . . . . 11 . . . . . . . Melee 1633 | . . . . . . . . . . . . . 96 . 322 213 . 19 245 . . . 40 150 . 269 147 13 119 Knockbacks 23 | . . 2 6 . . 7 4 4 . . . . . . . . . . . . . . . . . . . . . Impact . | . . . . . . . . . . . . . . . . . . . . . . . . . . . . . . Kinetic 22 | . . 2 6 . . 6 4 4 . . . . . . . . . . . . . . . . . . . . . Secondary 1 | . . . . . . 1 . . . . . . . . . . . . . . . . . . . . . . . Self-Inflicted Damage 225 | . . . 16 . . 10 . . 125 18 . . . . . . . . . . . 41 . . 15 . . . . Shots 17 | . . . 1 . . . . . 11 3 . . . . . . . . . . . 1 . . 1 . . . . Rammed 6 | . 2 1 1 . . 2 . . . . . . . . . . . . . . . . . . . . . . . Targets Rammed 6 | . 2 1 1 . . 2 . . . . . . . . . . . . . . . . . . . . . . . Kicked . | . . . . . . . . . . . . . . . . . . . . . . . . . . . . . . Crushed . | . . . . . . . . . . . . . . . . . . . . . . . . . . . . . . Highest Temperature 458 | 40 147 306 231 348 294 390 363 458 251 22 40 . 276 142 220 226 . 254 234 . . 156 198 336 101 239 358 202 234 Average Temperature 77 | 20 39 90 51 108 151 145 99 102 53 7 21 . 45 29 101 69 . 74 58 . . 60 55 115 37 59 92 68 67 Received Heat Transfer 1602 | . 237 12 294 53 . . 333 183 111 54 78 . . . 18 . . 27 . . . . . . . . 18 . 184 Effects 16 | . . 1 . 2 . 3 4 2 . . . . . . . . . . 1 . . . . 1 . . 2 . . Shutdowns 3 | . . . . . . 1 . 1 . . . . . . . . . . . . . . . . . . 1 . . Energy Bleed 5 | . . 1 . 2 . . . 1 . . . . . . . . . . . . . . . . . . 1 . . Interference 4 | . . . . . . . 3 . . . . . . . . . . . 1 . . . . . . . . . . Matter Decay 3 | . . . . . . 2 . . . . . . . . . . . . . . . . . 1 . . . . . Short Circuit 1 | . . . . . . . 1 . . . . . . . . . . . . . . . . . . . . . . Siege Activations . | . . . . . . . . . . . . . . . . . . . . . . . . . . . . . . Robots Corrupted 7 | . . . . . . . . . 2 1 4 . . . . . . . . . . . . . . . . . . Combat Hostiles 7 | . . . . . . . . . 2 1 4 . . . . . . . . . . . . . . . . . . Parts Fried 16 | . . 1 2 . . . . . 2 1 8 . . . . . . . 2 . . . . . . . . . . Impact Corruptions . | . . . . . . . . . . . . . . . . . . . . . . . . . . . . . . Robots Melted 1 | . . . . . . . . 1 . . . . . . . . . . . . . . . . . . . . . Combat Hostiles 1 | . . . . . . . . 1 . . . . . . . . . . . . . . . . . . . . . Parts Melted 15 | . 2 . . 1 . 2 5 5 . . . . . . . . . . . . . . . . . . . . . Heat Transferred 8448 | 100 474 . 111 740 . 703 2886 2738 . 50 . . . . . 50 . 50 546 . . . . . . . . . . Parts Sabotaged 1 | . . . . . . . . . . . . . . . . . . . . . . . . . . . . . 1 Parts Stolen . | . . . . . . . . . . . . . . . . . . . . . . . . . . . . . . Parts Stripped . | . . . . . . . . . . . . . . . . . . . . . . . . . . . . . . Power Chain Reactions 1 | . . . . . . . . . . 1 . . . . . . . . . . . . . . . . . . . Missiles Intercepted . | . . . . . . . . . . . . . . . . . . . . . . . . . . . . . . Alert | -11 -10 -10 -9 -9 -9 -8 -8 -7 -7 -7 -7 -6 -6 -6 -6 -5 -5 -5 -4 -4 -4 -3 -3 -3 -2 -2 -2 -1 -1 ------- Run | Scr Mat Min Mat Min Exi Min Mat Fac Low Low Dat Pro Fac Was Fac Fac Was Fac Fac Upp War Pro Res Tes Res Qua Sec Acc Com Peak Influence 824 | 10 185 215 524 247 . 90 488 508 . . . . 283 32 558 824 32 247 593 . . . 516 263 761 478 357 696 719 Initial 427 | . 6 44 . 141 . . 30 136 . . . . 56 17 . 263 17 15 46 . . . 15 218 65 427 75 147 252 Average 206 | 4 71 76 376 122 . 65 247 258 . . . . 85 2 230 305 23 172 115 . . . 189 137 218 257 208 216 559 Maximum Alert Level 3 | . . 1 2 1 . . 2 2 . . . . 1 . 2 3 . 1 2 . . . 2 1 3 2 1 2 3 Low Security (%) 57 | 100 100 93 6 81 . 100 21 43 . . . . 97 100 57 37 100 44 90 . . . 66 74 61 24 46 59 . Level 1 24 | . . 6 38 18 . . 74 29 . . . . 2 . 19 31 . 55 . . . . 12 25 15 61 53 22 2 Level 2 17 | . . . 55 . . . 3 27 . . . . . . 22 30 . . 9 . . . 21 . 10 13 . 17 88 Level 3 . | . . . . . . . . . . . . . . . . . . . . . . . . . 12 . . . 9 Level 4 . | . . . . . . . . . . . . . . . . . . . . . . . . . . . . . . Level 5 . | . . . . . . . . . . . . . . . . . . . . . . . . . . . . . . High Security . | . . . . . . . . . . . . . . . . . . . . . . . . . . . . . . Max Security . | . . . . . . . . . . . . . . . . . . . . . . . . . . . . . . Squads Dispatched 70 | . 2 1 3 . . . 3 9 . . . . 8 . 8 8 . 1 5 . . . 1 3 1 2 2 8 5 Investigation 23 | . 1 1 1 . . . 1 1 . . . . 5 . 2 3 . . 2 . . . . 1 . 1 . 3 1 Extermination 22 | . . . . . . . . 4 . . . . 2 . 3 1 . 1 2 . . . . 1 1 1 1 3 2 Reinforcement 13 | . 1 . 2 . . . 1 2 . . . . 1 . 3 . . . . . . . 1 1 . . 1 . . Assault 9 | . . . . . . . 1 . . . . . . . . 3 . . 1 . . . . . . . . 2 2 Garrison 3 | . . . . . . . . 2 . . . . . . . 1 . . . . . . . . . . . . . Intercept . | . . . . . . . . . . . . . . . . . . . . . . . . . . . . . . Construction Impeded . | . . . . . . . . . . . . . . . . . . . . . . . . . . . . . . Haulers Reinforced 4 | . . . . . . . . 1 . . . . 1 . 2 . . . . . . . . . . . . . . Stealth | -11 -10 -10 -9 -9 -9 -8 -8 -7 -7 -7 -7 -6 -6 -6 -6 -5 -5 -5 -4 -4 -4 -3 -3 -3 -2 -2 -2 -1 -1 --------- Run | Scr Mat Min Mat Min Exi Min Mat Fac Low Low Dat Pro Fac Was Fac Fac Was Fac Fac Upp War Pro Res Tes Res Qua Sec Acc Com Distress Signals 15 | . . . 3 . . . 1 3 . . . . . . . 1 . 1 2 . . . 1 . . . 2 1 . Communications Jammed 26 | . . . . . . . . . . . . . . . . . . . . . . . . . . . 12 11 3 Distress Signals 22 | . . . . . . . . . . . . . . . . . . . . . . . . . . . 11 11 . Times Spotted 375 | . 26 16 40 10 . 10 35 26 12 3 4 4 4 5 22 15 5 10 12 . . 2 9 15 8 7 19 19 37 Peak Tracking Total 9 | . 4 3 5 5 . 3 4 3 5 3 4 4 2 4 7 8 5 5 4 . . 2 4 7 5 2 4 5 9 Tactical Retreats 40 | . 2 2 1 1 . . 3 3 1 . . . 1 . 1 3 . 1 5 . . . 5 3 . 1 3 1 3 Traps | -11 -10 -10 -9 -9 -9 -8 -8 -7 -7 -7 -7 -6 -6 -6 -6 -5 -5 -5 -4 -4 -4 -3 -3 -3 -2 -2 -2 -1 -1 ------- Run | Scr Mat Min Mat Min Exi Min Mat Fac Low Low Dat Pro Fac Was Fac Fac Was Fac Fac Upp War Pro Res Tes Res Qua Sec Acc Com Traps Triggered 28 | . 6 1 1 . . . . 7 . . . . 2 . 1 4 . 1 1 . . . . 1 . . 1 2 . Indirectly . | . . . . . . . . . . . . . . . . . . . . . . . . . . . . . . Trap Hack Attempts . | . . . . . . . . . . . . . . . . . . . . . . . . . . . . . . Triggered . | . . . . . . . . . . . . . . . . . . . . . . . . . . . . . . Disarmed . | . . . . . . . . . . . . . . . . . . . . . . . . . . . . . . Reprogrammed 2 | . . . . . . . . . . . . . . . . . . . 2 . . . . . . . . . . Reused 1 | . . . . . . . . . . . . . . . . . . . 1 . . . . . . . . . . Traps Extracted . | . . . . . . . . . . . . . . . . . . . . . . . . . . . . . . Installed . | . . . . . . . . . . . . . . . . . . . . . . . . . . . . . . Triggered 11 | . . . . . . . . . . . . . . . . . . . 1 . 10 . . . . . . . . Machines | -11 -10 -10 -9 -9 -9 -8 -8 -7 -7 -7 -7 -6 -6 -6 -6 -5 -5 -5 -4 -4 -4 -3 -3 -3 -2 -2 -2 -1 -1 ---------- Run | Scr Mat Min Mat Min Exi Min Mat Fac Low Low Dat Pro Fac Was Fac Fac Was Fac Fac Upp War Pro Res Tes Res Qua Sec Acc Com Machines Disabled 53 | . 1 4 1 1 . 2 2 4 . . 1 . . . 1 6 . 4 . . . . . 9 . 6 6 3 2 Max in Single Turn 5 | . 1 1 1 1 . 1 1 1 . . 1 . . . . 5 . 4 . . . . . 1 . 1 1 1 2 Garrison Access 19 | . . . . . . . 1 1 . . . . 2 . . 2 . 1 2 . . . 2 1 1 1 1 4 . Phase Generator 1 | . . . . . . . . . . . . . . . . . . . . . . . . . . . . . 1 Energy Cycler 1 | . . . . . . . . . . . . . . . . . . . . . . . . . . . . 1 . Machines Sabotaged . | . . . . . . . . . . . . . . . . . . . . . . . . . . . . . . Garrisons Compromised . | . . . . . . . . . . . . . . . . . . . . . . . . . . . . . . Overloaded Fab Kills . | . . . . . . . . . . . . . . . . . . . . . . . . . . . . . . Fab Network Shutdowns 6 | . . . . . . . . 1 . . . . . . 1 1 . . 1 . . . 1 . 1 . . . . Hacking | -11 -10 -10 -9 -9 -9 -8 -8 -7 -7 -7 -7 -6 -6 -6 -6 -5 -5 -5 -4 -4 -4 -3 -3 -3 -2 -2 -2 -1 -1 --------- Run | Scr Mat Min Mat Min Exi Min Mat Fac Low Low Dat Pro Fac Was Fac Fac Was Fac Fac Upp War Pro Res Tes Res Qua Sec Acc Com Machines Accessed 198 | . 7 2 10 2 1 . 12 15 1 1 4 1 13 . 12 22 . 4 14 . 5 . 12 7 6 11 17 15 4 Terminals 113 | . 5 . 7 2 . . 7 7 . . . 1 8 . 5 14 . 1 8 . . . 6 4 3 8 15 9 3 Fabricators 19 | . . . . . . . . 2 . . . . 2 . 2 3 . 1 2 . . . 3 . 2 . . 2 . Repair Stations 11 | . . . 1 . . . 1 3 . . . . . . 1 2 . . 1 . . . . . . 1 . . 1 Recycling Units 7 | . 2 . 1 . . . 1 2 . . . . . . 1 . . . . . . . . . . . . . . Scanalyzers 13 | . . . 1 . . . 2 . . . . . 1 . 2 1 . . 1 . . . . 2 . 1 1 1 . Garrison Access 21 | . . . . . . . 1 1 . . . . 2 . 1 2 . 2 2 . . . 3 1 1 1 1 3 . Total Hacks 694 | . 23 2 30 12 4 . 38 47 1 1 24 1 66 . 55 84 . 12 60 . 13 . 48 19 19 42 37 46 10 Successful 455 | . 5 2 17 4 4 . 22 28 1 1 24 1 45 . 37 55 . 5 48 . 13 . 36 17 19 32 20 17 2 Failed 237 | . 17 . 13 8 . . 16 19 . . . . 21 . 18 29 . 7 12 . . . 11 2 . 10 17 29 8 Catastrophic 35 | . 1 . 5 1 . . 2 1 . . . . 2 . 2 5 . 1 2 . . . . . . 5 2 4 2 Database Lockouts 2 | . 1 . . . . . . . . . . . . . . . . . . . . . 1 . . . . . . Manual 331 | . 10 . 14 9 . . 13 21 . . . . 39 . 32 50 . 6 27 . . . 28 8 7 23 16 22 6 Terminals 440 | . 15 . 22 12 . . 24 28 . . . 1 44 . 31 62 . 3 38 . . . 32 14 10 31 34 30 9 Fabricators 76 | . . . . . . . . 6 . . . . 10 . 8 10 . 6 7 . . . 13 . 8 . . 8 . Repair Stations 23 | . . . 2 . . . 2 6 . . . . . . 2 3 . . 4 . . . . . . 3 . . 1 Recycling Units 21 | . 8 . 3 . . . 2 5 . . . . . . 3 . . . . . . . . . . . . . . Scanalyzers 41 | . . . 3 . . . 8 . . . . . 2 . 5 2 . . 7 . . . . 4 . 7 2 1 . Garrison Access 48 | . . . . . . . 2 2 . . . . 10 . 6 7 . 3 4 . . . 3 1 1 1 1 7 . Terminal Hacks 218 | . 3 2 7 3 4 . 9 10 1 1 24 1 20 . 10 28 . . 21 . 13 . 11 7 7 15 12 8 1 Record 22 | . . . . . 4 . . . . . 11 1 . . . . . . . . 5 . . . 1 . . . . Part Schematic 32 | . 1 . 1 . . . 2 1 . . 6 . 5 . 1 5 . . 5 . . . 2 . . 2 1 . . Robot Schematic 5 | . . . . 1 . . . . . . 4 . . . . . . . . . . . . . . . . . . Robot Analysis 4 | . . . . 1 . . 1 . . . . . . . . . . . . . . . . . . 1 1 . . Prototype ID Bank 15 | . . . . . . . . . . . 3 . 2 . . 1 . . . . 6 . 2 . . 1 . . . Open Door 11 | . . 2 . . . . . . 1 1 . . . . . . . . . . 2 . . . . . 5 . . Level Access Points 1 | . . . . . . . . . . . . . . . . . . . . . . . 1 . . . . . . Branch Access Points 9 | . . . 1 . . . 1 1 . . . . 1 . . 1 . . 1 . . . 1 . 1 . . 1 . Machine Index 6 | . . . . . . . . 1 . . . . . . . 1 . . 1 . . . 1 1 1 . . . . Terminal Index 8 | . . . . . . . . . . . . . 1 . 1 1 . . 1 . . . . 1 1 1 1 . . Fabricator Index 2 | . . . . . . . . . . . . . . . 1 . . . . . . . . . . . . 1 . Scanalyzer Index 1 | . . . . . . . . . . . . . . . 1 . . . . . . . . . . . . . . Garrison Index 1 | . . . . . . . . . . . . . 1 . . . . . . . . . . . . . . . . Alert Level 13 | . . . . . . . 1 . . . . . 2 . . 2 . . 3 . . . . 1 . 1 1 1 1 Unreport Threat 25 | . 1 . 1 . . . 1 3 . . . . 1 . 2 6 . . . . . . 1 1 1 3 1 3 . Locate Traps 23 | . . . 2 . . . . 1 . . . . 2 . 1 5 . . 5 . . . 2 1 1 2 1 . . Reprogram Traps 1 | . . . . . . . . . . . . . . . . . . . 1 . . . . . . . . . . Dispatch Records 1 | . . . . . . . . . . . . . . . . 1 . . . . . . . . . . . . . Maintenance Status 1 | . . . . . . . . . . . . . . . . 1 . . . . . . . . . . . . . Recall Investigation 1 | . . . . . . . . . . . . . . . . . . . . . . . . . . . . 1 . Recall Extermination 9 | . . . . . . . . . . . . . 2 . 2 1 . . 1 . . . . 1 . 1 . 1 . Recall Reinforcements 2 | . . . . . . . . . . . . . . . . . . . 1 . . . . . . . 1 . . Recall Assault 1 | . . . . . . . . . . . . . . . . 1 . . . . . . . . . . . . . Hauler Manifests 6 | . 1 . 1 . . . 1 1 . . . . 1 . . . . . . . . . . . . 1 . . . Registered Components 6 | . . . . . . . 1 . . . . . . . . 1 . . 1 . . . 1 . 1 1 . . . Registered Prototypes 6 | . . . . . . . 1 . . . . . 1 . 1 . . . 1 . . . . 1 . 1 . . . Zone Layout 6 | . . . 1 1 . . . 2 . . . . 1 . . 1 . . . . . . . . . . . . . Fabricator Hacks 48 | . . . . . . . . 4 . . . . 8 . 5 6 . 2 5 . . . 10 . 6 . . 2 . Network Status 2 | . . . . . . . . . . . . . 1 . . . . . . . . . 1 . . . . . . Load Schematic 22 | . . . . . . . . 2 . . . . 4 . 2 3 . 1 2 . . . 4 . 3 . . 1 . Build 24 | . . . . . . . . 2 . . . . 3 . 3 3 . 1 3 . . . 5 . 3 . . 1 . Repair Station Hacks 19 | . . . 2 . . . 2 5 . . . . . . 1 3 . . 4 . . . . . . 2 . . . Scan Component 8 | . . . 1 . . . 1 2 . . . . . . . 1 . . 2 . . . . . . 1 . . . Repair 8 | . . . 1 . . . 1 2 . . . . . . . 1 . . 2 . . . . . . 1 . . . Refit 3 | . . . . . . . . 1 . . . . . . 1 1 . . . . . . . . . . . . . Recycling Unit Hacks 5 | . 1 . 2 . . . . 1 . . . . . . 1 . . . . . . . . . . . . . . Retrieve Components 5 | . 1 . 2 . . . . 1 . . . . . . 1 . . . . . . . . . . . . . . Scanalyzer 36 | . . . 2 . . . 7 . . . . . 2 . 5 2 . . 7 . . . . 4 . 6 . 1 . Insert Component 21 | . . . 1 . . . 4 . . . . . 1 . 2 1 . . 4 . . . . 2 . 5 . 1 . Analyze 15 | . . . 1 . . . 3 . . . . . 1 . 3 1 . . 3 . . . . 2 . 1 . . . Garrison Access Hacks 15 | . . . . . . . . 1 . . . . 2 . . 1 . 1 1 . . . 2 1 1 1 1 3 . Seal Access 15 | . . . . . . . . 1 . . . . 2 . . 1 . 1 1 . . . 2 1 1 1 1 3 . Unauthorized Hacks 113 | . 1 . 4 1 . . 4 7 . . . . 13 . 14 15 . 2 10 . . . 13 5 5 8 7 3 1 Terminals 70 | . . . 3 1 . . 3 4 . . . . 6 . 5 7 . . 6 . . . 9 5 3 8 7 2 1 Track 26 | . . . 1 1 . . 1 1 . . . . 1 . . 2 . . 4 . . . 3 2 . 5 5 . . Assimilate 11 | . . . . . . . . . . . . . 1 . 1 1 . . . . . . 3 1 1 1 2 . . Botnet 25 | . . . 1 . . . 1 3 . . . . 3 . 1 3 . . 2 . . . 3 1 2 2 . 2 1 Detonate 1 | . . . . . . . . . . . . . . . 1 . . . . . . . . . . . . . . Disrupt 3 | . . . 1 . . . . . . . . . . . 1 . . . . . . . . 1 . . . . . Operators 4 | . . . . . . . 1 . . . . . 1 . 1 1 . . . . . . . . . . . . . Fabricators 17 | . . . . . . . . . . . . . 2 . 3 4 . 1 1 . . . 3 . 2 . . 1 . Report 3 | . . . . . . . . . . . . . 1 . . . . . 1 . . . 1 . . . . . . Prioritize 7 | . . . . . . . . . . . . . . . 2 2 . . . . . . 1 . 2 . . . . Siphon 4 | . . . . . . . . . . . . . . . . 2 . 1 . . . . 1 . . . . . . Haulers 3 | . . . . . . . . . . . . . 1 . 1 . . . . . . . . . . . . 1 . Repair Stations . | . . . . . . . . . . . . . . . . . . . . . . . . . . . . . . Recycling Units 7 | . 1 . 1 . . . 1 2 . . . . . . 2 . . . . . . . . . . . . . . Reject 2 | . . . . . . . . 1 . . . . . . 1 . . . . . . . . . . . . . . Mask 1 | . . . . . . . . . . . . . . . 1 . . . . . . . . . . . . . . Tunnel 4 | . 1 . 1 . . . 1 1 . . . . . . . . . . . . . . . . . . . . . Scanalyzers . | . . . . . . . . . . . . . . . . . . . . . . . . . . . . . . Garrison Access 19 | . . . . . . . . 1 . . . . 5 . 4 4 . 1 3 . . . 1 . . . . . . Broadcast 3 | . . . . . . . . . . . . . . . 1 1 . . 1 . . . . . . . . . . Reprogram 14 | . . . . . . . . 1 . . . . 5 . 2 3 . 1 1 . . . 1 . . . . . . Watchers 2 | . . . . . . . . . . . . . . . 1 . . . 1 . . . . . . . . . . Data Cores Recovered 4 | . . . . . . . 3 . . . . . . . . . . . . . . . . . . . . 1 . Used 2 | . . . . . . . 1 . . . . . . . . . . . . . . . . . . . . 1 . Hacking Detections 141 | . 7 . 10 2 . . 11 12 . . . 1 12 . 7 17 . 3 9 . . . 7 5 4 8 9 13 4 Full Trace Events 18 | . 1 . 1 . . . . . . . . . 5 . 1 3 . . 2 . . . . . . 1 . 3 1 Feedback Events 5 | . . . . . . . . . . . . . 2 . . 1 . . . . . . . . . . . 2 . Corruption 3 | . . . . . . . . . . . . . 1 . . 1 . . . . . . . . . . . 1 . Hackware Fried 2 | . . . . . . . . . . . . . 1 . . . . . . . . . . . . . . 1 . Feedback Blocked . | . . . . . . . . . . . . . . . . . . . . . . . . . . . . . . Robot Schematics Acquired 5 | . . . . 1 . . . . . . 4 . . . . . . . . . . . . . . . . . . Robots Built . | . . . . . . . . . . . . . . . . . . . . . . . . . . . . . . Matter . | . . . . . . . . . . . . . . . . . . . . . . . . . . . . . . Time . | . . . . . . . . . . . . . . . . . . . . . . . . . . . . . . Total Robot Build Rating . | . . . . . . . . . . . . . . . . . . . . . . . . . . . . . . Part Schematics Acquired 44 | . 1 . 2 . . . 5 1 . . 6 . 6 . 3 6 . . 6 . . . 2 2 . 3 1 . . Parts Built 24 | . . . . . . . . 2 . . . . 3 . 3 3 . 1 2 . . . 6 . 3 . . 1 . Matter 5778 | . . . . . . . . 431 . . . . 782 . 709 812 . 285 603 . . . 1096 . 870 . . 190 . Time 1662 | . . . . . . . . 188 . . . . 135 . 311 381 . 76 132 . . . 298 . 110 . . 31 . Total Part Build Rating 146 | . . . . . . . . 8 . . . . 16 . 17 20 . 5 11 . . . 45 . 19 . . 5 . Parts Repaired 8 | . . . 1 . . . 1 2 . . . . . . . 1 . . 2 . . . . . . 1 . . . Time 276 | . . . 32 . . . 38 88 . . . . . . . 16 . . 62 . . . . . . 40 . . . Parts Recycled . | . . . . . . . . . . . . . . . . . . . . . . . . . . . . . . Recycled Matter . | . . . . . . . . . . . . . . . . . . . . . . . . . . . . . . Retrieved Matter . | . . . . . . . . . . . . . . . . . . . . . . . . . . . . . . Retrieved Components 14 | . 3 . . . . . . 1 . . . . . . 10 . . . . . . . . . . . . . . Parts Scanalyzed 14 | . . . 1 . . . 4 . . . . . 1 . 2 1 . . 2 . . . . 2 . 1 . . . Part Schematics Acquired 13 | . . . 1 . . . 3 . . . . . 1 . 2 1 . . 2 . . . . 2 . 1 . . . Parts Damaged . | . . . . . . . . . . . . . . . . . . . . . . . . . . . . . . Bothacking | -11 -10 -10 -9 -9 -9 -8 -8 -7 -7 -7 -7 -6 -6 -6 -6 -5 -5 -5 -4 -4 -4 -3 -3 -3 -2 -2 -2 -1 -1 ------------ Run | Scr Mat Min Mat Min Exi Min Mat Fac Low Low Dat Pro Fac Was Fac Fac Was Fac Fac Upp War Pro Res Tes Res Qua Sec Acc Com Used RIF Installer . | . . . . . . . . . . . . . . . . . . . . . . . . . . . . . . Robots Hacked . | . . . . . . . . . . . . . . . . . . . . . . . . . . . . . . Non-combat . | . . . . . . . . . . . . . . . . . . . . . . . . . . . . . . Combat . | . . . . . . . . . . . . . . . . . . . . . . . . . . . . . . Robot Hacks Applied . | . . . . . . . . . . . . . . . . . . . . . . . . . . . . . . Relay Couplers Released 11 | . . . . . . . 3 . . . . . . . . 1 . . 4 . . . . . . . . 3 . Machine Destruction 11 | . . . . . . . 3 . . . . . . . . 1 . . 4 . . . . . . . . 3 . Robots Rewired 11 | . . . . . . . . . 1 . . . 2 . . 3 . . . . 5 . . . . . . . . Allies Hacked 3 | . . . . . . . . . . . . . . . 1 1 . . . . . 1 . . . . . . . Hacks Repelled 1 | . . . . . . . . . . . . . . . . 1 . . . . . . . . . . . . . Allies | -11 -10 -10 -9 -9 -9 -8 -8 -7 -7 -7 -7 -6 -6 -6 -6 -5 -5 -5 -4 -4 -4 -3 -3 -3 -2 -2 -2 -1 -1 -------- Run | Scr Mat Min Mat Min Exi Min Mat Fac Low Low Dat Pro Fac Was Fac Fac Was Fac Fac Upp War Pro Res Tes Res Qua Sec Acc Com Total Allies 59 | . . 3 . 2 . . . 1 1 . . . 14 19 2 6 . . 2 . 5 . 1 1 1 1 . . . Largest Group 20 | . . 3 3 2 1 . . 1 1 . . . 10 20 15 4 . . 2 . 5 3 1 1 1 1 . . . Highest-Rated Group 737 | . . 40 40 50 31 . . 32 16 . . . 283 737 508 133 . . 108 . 250 152 26 44 44 10 . . . Highest-Rated Ally 60 | . . 16 16 31 31 . . 32 16 . . . 41 50 46 49 . . 54 . 60 60 26 44 44 10 . . . Total Orders 2 | . . . . . . . . . . . . . . . . . . . . . . . . 2 . . . . . STAY 1 | . . . . . . . . . . . . . . . . . . . . . . . . 1 . . . . . FOLLOW 1 | . . . . . . . . . . . . . . . . . . . . . . . . 1 . . . . . Ally Attacks 334 | . . 3 32 3 . . . 4 2 . . . 28 111 106 33 . . 5 . . 7 . . . . . . . Total Damage 8200 | . . 49 340 21 . . . 168 29 . . . 471 3410 2862 559 . . 149 . . 142 . . . . . . . Kills 44 | . . 2 7 1 . . . . . . . . 3 7 19 4 . . 1 . . . . . . . . . . Allies Corrupted 2 | . . . . . . . . . . . . . . . 1 1 . . . . . . . . . . . . . Allies Melted . | . . . . . . . . . . . . . . . . . . . . . . . . . . . . . . Intel | -11 -10 -10 -9 -9 -9 -8 -8 -7 -7 -7 -7 -6 -6 -6 -6 -5 -5 -5 -4 -4 -4 -3 -3 -3 -2 -2 -2 -1 -1 ------- Run | Scr Mat Min Mat Min Exi Min Mat Fac Low Low Dat Pro Fac Was Fac Fac Was Fac Fac Upp War Pro Res Tes Res Qua Sec Acc Com Robot Analysis Total 4 | . . . . 1 . . 1 . . . . . . . . . . . . . . . . . . 1 1 . . Derelict Logs Recovered 6 | . . 2 . 1 . . . . 2 1 . . . . . . . . . . . . . . . . . . . Drone Launches . | . . . . . . . . . . . . . . . . . . . . . . . . . . . . . . Drone Recoveries . | . . . . . . . . . . . . . . . . . . . . . . . . . . . . . . Exploration | -11 -10 -10 -9 -9 -9 -8 -8 -7 -7 -7 -7 -6 -6 -6 -6 -5 -5 -5 -4 -4 -4 -3 -3 -3 -2 -2 -2 -1 -1 ------------- Run | Scr Mat Min Mat Min Exi Min Mat Fac Low Low Dat Pro Fac Was Fac Fac Was Fac Fac Upp War Pro Res Tes Res Qua Sec Acc Com Turns Passed 29639 | 115 1155 1528 2039 940 398 1006 1745 3402 2741 907 279 1016 1254 489 1117 1361 41 436 1300 39 455 209 901 901 381 643 972 1101 768 Spaces Moved 29807 | 49 549 804 1209 561 261 517 900 1850 513 581 146 541 2054 461 2127 2823 101 932 2443 107 940 512 1492 1261 493 1449 1344 1740 1047 Core 7 | 1 1 . . . . . . . . . . . . . . . . . . . . . . . . . . . 5 Treads 1571 | 48 548 804 156 . . . . 15 . . . . . . . . . . . . . . . . . . . . . Legs 690 | . . . . . . . 91 . . . 58 541 . . . . . . . . . . . . . . . . . Wheels 6218 | . . . 1053 561 261 517 809 1835 513 581 88 . . . . . . . . . . . . . . . . . . Hover . | . . . . . . . . . . . . . . . . . . . . . . . . . . . . . . Flight 21321 | . . . . . . . . . . . . . 2054 461 2127 2823 101 932 2443 107 940 512 1492 1261 493 1449 1344 1740 1042 Fastest Speed 23 | 50 160 160 120 130 100 170 130 110 140 140 140 180 23 24 27 27 34 34 34 34 28 28 28 28 28 28 28 28 28 Average Speed 64 | 157 165 176 133 130 141 170 143 146 149 149 153 180 23 29 30 30 35 34 34 34 31 28 28 32 28 28 28 28 28 Slowest Speed 650 | 160 650 180 160 130 170 170 300 260 150 150 240 180 24 34 34 34 37 37 34 34 34 28 28 114 28 98 98 98 50 Overloaded Moves . | . . . . . . . . . . . . . . . . . . . . . . . . . . . . . . Propulsion Burnouts . | . . . . . . . . . . . . . . . . . . . . . . . . . . . . . . Robots Hopped 72 | . . . . . . . . . . . . . 6 . 11 14 5 . 9 . 2 . 1 15 . 4 1 2 2 Cave-ins Triggered . | . . . . . . . . . . . . . . . . . . . . . . . . . . . . . . Teleports 1 | . . . . . . . . . . . . . . . . . . . . . . . . . . . 1 . . Exploration Rate (%) 59 | 5 77 87 91 96 57 87 75 45 66 62 77 75 37 94 39 51 84 22 40 20 93 66 27 79 15 81 68 49 23 Regions Visited 29 Branch Regions 15 Pre-discovered Areas 8 | . 1 1 1 . 1 . 1 1 . . 1 . . . . . . . . . 1 . . . . . . . . Known Exits Taken 15 | . . . 1 . . 1 . 1 . . . . . . 1 . . 1 1 1 1 1 1 1 1 1 1 1 . Unknown Exits Taken 10 | 1 1 1 . 1 1 . 1 . 1 1 1 1 . . . . . . . . . . . . . . . . . Scrap Searched 13 | . . 1 . . . 2 . . 2 3 . 5 . . . . . . . . . . . . . . . . . Spaces Dug 332 | . . . 1 . . 1 1 14 . . . 8 20 . 16 39 . 7 58 . 4 2 31 20 9 15 32 42 12 Terrain Destroyed 838 | . 6 5 20 . . 4 53 25 19 4 . 39 25 . 16 65 . 34 75 . 4 72 42 36 42 18 48 103 83 Melee 182 | . . . . . . . . . . . . . 13 . 16 25 . 6 7 . 4 2 15 8 9 15 25 32 5 Projectile 257 | . . 5 15 . . 4 30 5 . . . . 12 . . 28 . 4 33 . . . 27 28 . 3 23 31 9 AOE 399 | . 6 . 5 . . . 23 20 19 4 . 39 . . . 12 . 24 35 . . 70 . . 33 . . 40 69 Terrain Rammed . | . . . . . . . . . . . . . . . . . . . . . . . . . . . . . . Walls Destroyed . | . . . . . . . . . . . . . . . . . . . . . . . . . . . . . . Machines Disabled . | . . . . . . . . . . . . . . . . . . . . . . . . . . . . . . Actions | -11 -10 -10 -9 -9 -9 -8 -8 -7 -7 -7 -7 -6 -6 -6 -6 -5 -5 -5 -4 -4 -4 -3 -3 -3 -2 -2 -2 -1 -1 --------- Run | Scr Mat Min Mat Min Exi Min Mat Fac Low Low Dat Pro Fac Was Fac Fac Was Fac Fac Upp War Pro Res Tes Res Qua Sec Acc Com Total 38125 | 72 695 869 1472 741 289 575 1203 2276 2451 605 189 574 2797 805 2514 3190 101 1011 2801 108 1086 562 1900 1650 698 1591 1737 2164 1399 Wait 5631 | 8 21 12 109 158 3 13 103 111 1872 . . 23 576 317 278 195 5 29 190 1 91 38 288 275 159 51 211 256 238 Move 29650 | 48 548 803 1208 560 260 516 899 1849 512 580 145 540 2042 460 2108 2796 92 931 2426 106 936 511 1489 1233 492 1441 1341 1735 1043 Hop 58 | . . . . . . . . . . . . . 6 . 7 13 3 . 7 . 1 . 1 12 . 3 1 2 2 Pick Up 354 | 3 27 6 17 2 17 2 31 51 9 4 5 1 35 3 15 17 . 7 22 . 4 . 13 14 8 12 8 8 13 Fast Attach 210 | 7 8 3 12 . 1 . 22 24 4 2 9 . 14 6 10 12 . 4 12 . 11 . 7 13 2 8 10 3 6 Attach 93 | . 5 2 5 1 . 2 7 6 4 1 3 . 12 2 1 5 . 4 4 . . . 5 2 2 1 3 8 8 Detach 22 | . . . 1 . . . 2 1 . . . . 2 1 . 4 . 1 1 . . . 2 . . . . 6 1 Swap 231 | . 7 4 6 1 3 . 9 19 6 2 6 3 1 3 6 6 . 4 22 1 3 3 8 18 10 10 46 19 5 Drop 466 | . 15 11 25 3 5 . 45 54 14 6 11 1 59 5 24 24 1 8 30 . 15 . 20 27 7 20 9 9 18 Fire 800 | 6 62 27 88 16 . 40 85 140 25 10 9 6 12 . 6 29 . 5 63 . . 6 46 34 3 5 30 37 10 Melee 483 | . . . . . . . . . . . 1 . 31 8 59 47 . 18 24 . 5 4 21 22 15 40 65 68 55 Ram 3 | . . . 1 . . 2 . . . . . . . . . . . . . . . . . . . . . . . Kick . | . . . . . . . . . . . . . . . . . . . . . . . . . . . . . . Crush 3 | . 2 1 . . . . . . . . . . . . . . . . . . . . . . . . . . . Escape Stasis 70 | . . . . . . . . 21 . . . . . . . 23 . . . . . . . . . . 13 13 . Rewire 51 | . . . . . . . . . 5 . . . 7 . . 19 . . . . 20 . . . . . . . . Trap . | . . . . . . . . . . . . . . . . . . . . . . . . . . . . . . Miscellaneous . | . . . . . . . . . . . . . . . . . . . . . . . . . . . . . . Route ------- -11/Scrapyard -10/Materials (discovered 5 exits: *Mat x3 / *Min x2) -10/Mines (discovered 2 exits: *Mat x2) -9/Materials (discovered 4 exits: *Mat x3 / *Min) -9/Mines (discovered 3 exits: *Mat x2 / *Exi) -9/Exiles -8/Mines (discovered 2 exits: *Mat x2) -8/Materials (discovered 2 exits: *Fac x2) -7/Factory (discovered 6 exits: *Fac x2 / *Sto x2 / *Low x2) -7/Lower Caves (discovered 2 exits: *Low / [*Zio]) -7/Lower Caves -7/Data Miner -6/Proximity Caves -6/Factory (discovered 4 exits: *Fac x2 / Low x2) -6/Waste -6/Factory -5/Factory (discovered 3 exits: *Fac / Upp x2) -5/Waste -5/Factory -4/Factory (discovered 5 exits: Res / *Upp x2 / Ext x2) -4/Upper Caves -4/Warlord -3/Proximity Caves -3/Research (discovered 6 exits: *Res x3 / Arm / *Tes x2) -3/Testing -2/Research (discovered 2 exits: *Qua x2) -2/Quarantine (discovered 2 exits: *Acc / *Sec) -2/Section 7 -1/Access (discovered 2 exits: [Sur] / *Com) -1/Command (discovered 1 exit: [Sur]) History --------- Turn | Location | Event 11 | -11/Scrapyard | Discovered new exit (range 15) 116 | -11/Scrapyard | Entered Materials 145 | -10/Materials | Discovered new exit (range 16) 307 | -10/Materials | Build established: Mutant 337 | -10/Materials | Discovered new exit (range 16) 511 | -10/Materials | Discovered new exit (range 9) 798 | -10/Materials | Discovered new exit (range 3) 893 | -10/Materials | Central database locked down 1098 | -10/Materials | Discovered new exit (range 11) 1271 | -10/Materials | Entered Mines 1271 | -10/Mines | Discovered new exit (range 10) 1281 | -10/Mines | Met a Derelict shopkeep closing up shop 1361 | -10/Mines | Learned location of Zion (-6) 1389 | -10/Mines | Learned Materials terminal intel 1524 | -10/Mines | Discovered new exit (range 7) 1549 | -10/Mines | Met a Derelict who couldn't figure out how to use a Trap Extractor 1884 | -10/Mines | Core integrity fell below 50% 2030 | -10/Mines | Assisted by bots powering up and referring to "LRC-V3" 2799 | -10/Mines | Entered Materials 2799 | -9/Materials | Accompanied by 3 allies 2799 | -9/Materials | Evolved 2 slots: Propulsion x1, Utility x1 2800 | -9/Materials | Loaded intel: 12 terminal locations 3394 | -9/Materials | Discovered new exit (range 7) 3804 | -9/Materials | Discovered new exit (range 12) 3871 | -9/Materials | Identified exit to Mines 3909 | -9/Materials | Discovered new exit (range 9) 4248 | -9/Materials | Repaired Imp. Light Cannon 4308 | -9/Materials | Discovered new exit (range 11) 4717 | -9/Materials | Build established: Hauler-Mutant 4838 | -9/Materials | Entered Mines 4839 | -9/Mines | Assembled infested the area 5158 | -9/Mines | Discovered new exit (range 8) 5164 | -9/Mines | Identified exit to Materials 5563 | -9/Mines | Found a damaged Exp. Sensor Array with a note attached 5566 | -9/Mines | Found Prototype Device 5764 | -9/Mines | Deemed a non-threat by the Exiles lab entrance 5764 | -9/Mines | Discovered new exit (range 5) 5778 | -9/Mines | Entered Exiles 5778 | -9/Exiles | Accompanied by 1 ally 5808 | -9/Exiles | Led the pair of lost Derelicts to a safe place 5811 | -9/Exiles | Met 8R-AWN 5833 | -9/Exiles | Met EX-HEX 5884 | -9/Exiles | Met EX-DEC 6122 | -9/Exiles | Identified Exp. Sensor Array 6157 | -9/Exiles | Discovered new exit (range 11) 6176 | -9/Exiles | Entered Mines 6643 | -8/Mines | Discovered exit to Materials (range 3) 7151 | -8/Mines | Discovered exit to Materials (range 5) 7182 | -8/Mines | Entered Materials 7182 | -8/Materials | Evolved 2 slots: Utility x2 8202 | -8/Materials | Discovered new exit (range 5) 8674 | -8/Materials | Repaired Lgt. Deuterium Engine 8694 | -8/Materials | Discovered new exit (range 12) 8927 | -8/Materials | Entered Factory 8927 | -7/Factory | Evolved 2 slots: Utility x2 9440 | -7/Factory | Garrison activated, responded to threat 9827 | -7/Factory | Discovered new exit (range 11) 10141 | -7/Factory | Fabricated Hacking Suite (x1) 10217 | -7/Factory | Local fabrication network quarantined 10229 | -7/Factory | Fabricated Exp. Sensor Array (x1) 10331 | -7/Factory | Discovered new exit (range 16) 10949 | -7/Factory | Identified exit to Storage 10949 | -7/Factory | Identified exit to Lower Caves 11005 | -7/Factory | Repaired Med. Treads 11122 | -7/Factory | Discovered new exit (range 7) 11262 | -7/Factory | System corruption reached 10% 12043 | -7/Factory | Repaired Hrd. Heavy Armor Plating 12329 | -7/Factory | Entered Lower Caves 14259 | -7/Lower Caves | A Derelict revealed a hidden shortcut to a safe place 14334 | -7/Lower Caves | Spotted B-75 Beast 14518 | -7/Lower Caves | Attracted the attention of an 0b10 outpost 14592 | -7/Lower Caves | Learned Factory garrison access intel 14638 | -7/Lower Caves | Learned Factory stockpile data 14640 | -7/Lower Caves | Encountered a Warlord checkpoint 14974 | -7/Lower Caves | Discovered new exit (range 7) 15070 | -7/Lower Caves | Entered another Lower Caves area 15102 | -7/Lower Caves | Learned 4 Factory zone layouts 15623 | -7/Lower Caves | Discovered new exit (range 9) 15977 | -7/Lower Caves | Entered Data Miner 15977 | -7/Data Miner | Discovered new exit (range 6) 16006 | -7/Data Miner | Met Data Miner 16031 | -7/Data Miner | Learned location of Section 7 (-2) 16031 | -7/Data Miner | Acquired the access code to Warlord's prototype stash 16058 | -7/Data Miner | Received God Mode back door access code from Data Miner 16091 | -7/Data Miner | Destroyed Data Miner 16096 | -7/Data Miner | Found Prototype Hackware 16096 | -7/Data Miner | Identified Deep Network Scanner 16099 | -7/Data Miner | Found Prototype Hackware 16101 | -7/Data Miner | Found Prototype Hackware 16101 | -7/Data Miner | Identified Ghost Barrier 16104 | -7/Data Miner | Data Conduit disabled 16256 | -7/Data Miner | Entered Proximity Caves 16356 | -6/Proximity Caves | Build established: Hacker-Mutant 17179 | -6/Proximity Caves | Discovered new exit (range 8) 17272 | -6/Proximity Caves | Entered Factory 17272 | -6/Factory | Evolved 2 slots: Propulsion x2 17273 | -6/Factory | Identified exit to Factory 17275 | -6/Factory | Loaded intel: 4 garrison access locations 17285 | -6/Factory | Identified System Mapper 17607 | -6/Factory | Build established: Wizard-Sprinter 17850 | -6/Factory | Discovered exit to Factory (range 16) 17963 | -6/Factory | Identified exit to Lower Caves 17963 | -6/Factory | Spotted B-75 Beast 18313 | -6/Factory | Fabricated Exp. Utility Shielding? 18360 | -6/Factory | Fabricated Adv. Hacking Suite (x1) 18411 | -6/Factory | Fabricated Exp. Terrain Scan Processor (x1) 18443 | -6/Factory | Deep Network Scanner fried by hacking feedback 18526 | -6/Factory | Manually triggered Chute Trap 18526 | -6/Factory | Sucked down chute 18526 | -6/Factory | Entered Waste 18530 | -6/Waste | Spotted C-40 Crusher 18531 | -6/Waste | Spotted C-40 Crusher 18547 | -6/Waste | Spotted C-40 Crusher 18553 | -6/Waste | Warlord forces began an assault 18575 | -6/Waste | Spotted C-40 Crusher 18576 | -6/Waste | Crushed by Compactor (1 part destroyed, 2 dropped) 18579 | -6/Waste | Crushed by Compactor (1 part destroyed, 2 dropped) 18584 | -6/Waste | Spotted C-40 Crusher 18593 | -6/Waste | Allies destroyed C-40 Crusher 18716 | -6/Waste | Build established: Hacker-Sprinter 18755 | -6/Waste | 2 allies followed down the chute 18800 | -6/Waste | 5 allies followed down the chute 18852 | -6/Waste | Discovered new exit (range 11) 18947 | -6/Waste | Identified exit to Factory 19007 | -6/Waste | Found Broken Enh. Force Lance 19015 | -6/Waste | Entered Factory 19015 | -6/Factory | Accompanied by 14 allies 19799 | -6/Factory | Fabricated Lgt. Regenerative Plating (x1) 19852 | -6/Factory | Fabricated Adv. Hacking Suite (x1) 19901 | -6/Factory | Local fabrication network quarantined 19909 | -6/Factory | Fabricated Adv. Hacking Suite (x1) 20129 | -6/Factory | Discovered exit to Factory (range 7) 20132 | -6/Factory | Entered another Factory area 20132 | -5/Factory | Evolved 2 slots: Power x1, Utility x1 20392 | -5/Factory | Repaired Nuclear Pulse Thruster 20421 | -5/Factory | Garrison activated, responded to threat 20432 | -5/Factory | First assault squad dispatched 20552 | -5/Factory | Fabricated Mni. Smartbomb Launcher? 20702 | -5/Factory | Identified exit to Upper Caves 20793 | -5/Factory | Discovered new exit (range 3) 20793 | -5/Factory | Identified exit to Factory 20797 | -5/Factory | Fabricated Impulse Thruster Array? 20807 | -5/Factory | Build established: Wizard-Sprinter 20927 | -5/Factory | Local fabrication network quarantined 20938 | -5/Factory | Fabricated Mni. Smartbomb Launcher (x1) 21433 | -5/Factory | Build established: Wizard-Mutant 21493 | -5/Factory | Manually triggered Chute Trap 21493 | -5/Factory | Sucked down chute 21493 | -5/Factory | Entered Waste 21501 | -5/Waste | Spotted C-40 Crusher 21502 | -5/Waste | Spotted C-40 Crusher 21502 | -5/Waste | Spotted C-40 Crusher 21503 | -5/Waste | Spotted C-40 Crusher 21505 | -5/Waste | Spotted C-40 Crusher 21508 | -5/Waste | EMP discharged 21516 | -5/Waste | Crushed by Compactor (1 part destroyed, 1 dropped) 21524 | -5/Waste | Spotted C-40 Crusher 21529 | -5/Waste | Discovered new exit (range 14) 21533 | -5/Waste | Identified exit to Factory 21534 | -5/Waste | Entered Factory 21879 | -5/Factory | Fabricated Exp. Propulsion Shielding? 21957 | -5/Factory | Discovered exit to Factory (range 15) 21970 | -5/Factory | Entered another Factory area 21970 | -4/Factory | Evolved 2 slots: Utility x2 22085 | -4/Factory | Found Prototype Device 22090 | -4/Factory | Discovered new exit (range 21) 22096 | -4/Factory | Identified Exp. ECM Suite 22263 | -4/Factory | Discovered new exit (range 22) 22285 | -4/Factory | Build established: Wizard-Scout 22593 | -4/Factory | Identified exit to Upper Caves 22593 | -4/Factory | Identified exit to Extension 22650 | -4/Factory | Repaired Impulse Thruster Array 22679 | -4/Factory | Repaired Nuclear Pulse Array 22935 | -4/Factory | Found Exp. Signal Interpreter 22946 | -4/Factory | Fabricated Exp. Propulsion Shielding? 22957 | -4/Factory | Fabricated Plasma Sword (x1) 23150 | -4/Factory | Local fabrication network quarantined 23201 | -4/Factory | Build established: Wizard-Mutant 23270 | -4/Factory | Entered Upper Caves 23295 | -4/Upper Caves | A Derelict revealed a hidden shortcut to "reach the base" 23309 | -4/Upper Caves | Identified exit to Warlord 23309 | -4/Upper Caves | Entered Warlord 23340 | -4/Warlord | Discovered new exit (range 8) 23405 | -4/Warlord | Learned Quarantine trap positions 23405 | -4/Warlord | Learned Armory emergency access door positions 23514 | -4/Warlord | Warlord's base attacked by MAIN.C 23560 | -4/Warlord | Found Prototype Reactor 23563 | -4/Warlord | Found Ghost Barrier 23565 | -4/Warlord | Found Prototype Processor 23565 | -4/Warlord | Identified Exp. Core Analyzer 23611 | -4/Warlord | Found Prototype Energy Cannon 23611 | -4/Warlord | Identified Vortex Cannon 23723 | -4/Warlord | Opened side exit 23730 | -4/Warlord | Identified exit to Proximity Caves 23764 | -4/Warlord | Entered Proximity Caves 23764 | -3/Proximity Caves | Accompanied by 3 allies 23922 | -3/Proximity Caves | Discovered new exit (range 15) 23972 | -3/Proximity Caves | Identified exit to Research 23973 | -3/Proximity Caves | Entered Research 23973 | -3/Research | Evolved 2 slots: Utility x2 23974 | -3/Research | Identified exit to Testing 24121 | -3/Research | Identified exit to Armory 24121 | -3/Research | Identified exit to Research 24130 | -3/Research | Build established: Wizard-Scout 24166 | -3/Research | Found Enh. Force Lance 24205 | -3/Research | Central database locked down 24477 | -3/Research | Fabricated Force Lance? 24513 | -3/Research | Fabricated Adv. Phase Shifter? 24555 | -3/Research | Fabricated Force Lance? 24574 | -3/Research | Fabricated Adv. Force Field (x2) 24580 | -3/Research | Local fabrication network quarantined 24614 | -3/Research | Fabricated Imp. Powered Armor (x1) 24719 | -3/Research | Identified Vortex Chain Reactor 24874 | -3/Research | Entered Testing 24885 | -3/Testing | Found Prototype Energy Cannon 24885 | -3/Testing | Identified Null Cannon 24942 | -3/Testing | Found Prototype Device 24942 | -3/Testing | Identified Exp. Hardlight Generator 24995 | -3/Testing | Found System Mapper 25121 | -3/Testing | Discovered exit to Research (range 24) 25328 | -3/Testing | Found Prototype Device 25328 | -3/Testing | Identified AEGIS Remote Shield 25443 | -3/Testing | Found Prototype Ballistic Gun 25669 | -3/Testing | Found Prototype Energy Gun 25669 | -3/Testing | Identified Tachyon Dispersion Ray 25775 | -3/Testing | Entered Research 25775 | -2/Research | Evolved 2 slots: Propulsion x1, Utility x1 25776 | -2/Research | Identified exit to Quarantine 25920 | -2/Research | Fabricated Adv. Transmission Jammer (x1) 25945 | -2/Research | Fabricated Exp. Propulsion Shielding (x1) 26069 | -2/Research | Local fabrication network quarantined 26114 | -2/Research | Fabricated Mni. Fusion Reactor? 26156 | -2/Research | Entered Quarantine 26157 | -2/Quarantine | Loaded intel: 18 trap records 26216 | -2/Quarantine | Repaired Exp. Utility Shielding 26275 | -2/Quarantine | Build established: Wizard-Ninja 26291 | -2/Quarantine | Found Alien Artifact 26291 | -2/Quarantine | Identified Stasis Generator 26312 | -2/Quarantine | Found Enh. Force Lance 26415 | -2/Quarantine | Found Alien Artifact 26415 | -2/Quarantine | Identified Phase Redirector 26431 | -2/Quarantine | Discovered new exit (range 23) 26450 | -2/Quarantine | Found Alien Artifact 26535 | -2/Quarantine | Identified Core Reset Matrix 26564 | -2/Quarantine | Found Alien Artifact 26569 | -2/Quarantine | Found Alien Artifact 26606 | -2/Quarantine | Identified Hpw. Transdimensional Reconstructor (x2) 26664 | -2/Quarantine | Found Alien Artifact 26666 | -2/Quarantine | Found Alien Artifact 26679 | -2/Quarantine | Identified Dimensional Node Initializer (x2) 26694 | -2/Quarantine | Found Alien Artifact 26707 | -2/Quarantine | Identified Subatomic Replicator 26752 | -2/Quarantine | Build established: Machinist-Ninja 26771 | -2/Quarantine | Spotted Fortress 26794 | -2/Quarantine | Discovered new exit (range 6) 26799 | -2/Quarantine | Identified exit to Section 7 26799 | -2/Quarantine | Entered Section 7 26869 | -2/Section 7 | Discovered new exit (range 22) 26973 | -2/Section 7 | Found Alien Artifact 26973 | -2/Section 7 | Identified Integrated Dissipator 26973 | -2/Section 7 | Installed Integrated Dissipator, increased core heat dissipation (+20) 26977 | -2/Section 7 | Spotted B-90 Cyclops 26987 | -2/Section 7 | Found Alien Artifact 26987 | -2/Section 7 | Identified Integrity Redistributor 26987 | -2/Section 7 | Used Integrity Redistributor, redistributed integrity from core (-49) 27402 | -2/Section 7 | Spotted S7 Guard 27411 | -2/Section 7 | Initialized slip node 27458 | -2/Section 7 | Found Alien Artifact 27576 | -2/Section 7 | Identified Core Membrane 27576 | -2/Section 7 | Installed Core Membrane, gained immunity to corruption 27580 | -2/Section 7 | Found Hpw. Transdimensional Reconstructor 27660 | -2/Section 7 | Spotted B-99 Colossus 27687 | -2/Section 7 | Found Alien Artifact 27687 | -2/Section 7 | Identified LRC Matter Compressor 27687 | -2/Section 7 | Installed LRC Matter Compressor, increased matter storage capacity (+125) 27690 | -2/Section 7 | Found Alien Artifact 27690 | -2/Section 7 | Identified LRC Insulator 27690 | -2/Section 7 | Installed LRC Insulator, gained EM resistance (25) 27692 | -2/Section 7 | Found Alien Artifact 27692 | -2/Section 7 | Identified LRC Energy Well 27692 | -2/Section 7 | Installed LRC Energy Well, increased energy storage capacity (+250) 27727 | -2/Section 7 | Found Integrity Redistributor 27727 | -2/Section 7 | Used Integrity Redistributor, redistributed integrity from core (-34) 27733 | -2/Section 7 | Found Integrity Redistributor 27734 | -2/Section 7 | Warped through subspace to slip node 27737 | -2/Section 7 | Found Integrity Redistributor 27770 | -2/Section 7 | Identified exit to Access 27771 | -2/Section 7 | Entered Access 27771 | -1/Access | Evolved 2 slots: Utility x2 27849 | -1/Access | Discovered new exit (range 17) 27896 | -1/Access | Energy Cycler disabled 27955 | -1/Access | Fabricated Adv. Melee Analysis Suite (x1) 27956 | -1/Access | System Mapper fried by hacking feedback 28020 | -1/Access | Spotted B-99 Colossus 28755 | -1/Access | Identified exit to Command 28771 | -1/Access | First assault squad dispatched 28872 | -1/Access | Entered Command 28890 | -1/Command | Phase Generator disabled 29072 | -1/Command | Discovered new exit (range 17) 29162 | -1/Command | First assault squad dispatched 29343 | -1/Command | Used Subatomic Replicator to replicate Vortex Chain Reactor 29506 | -1/Command | Spotted M Guard 29506 | -1/Command | Spotted M Guard 29507 | -1/Command | Spotted Combat Programmer 29524 | -1/Command | Spotted Combat Programmer 29527 | -1/Command | Destroyed Combat Programmer 29541 | -1/Command | Used Integrity Redistributor, redistributed integrity from core (-60) 29542 | -1/Command | Destroyed Combat Programmer 29617 | -1/Command | Released all parts (7) 29624 | -1/Command | Core integrity fell below 50% 29637 | -1/Command | Core integrity fell below 20% 29640 | -1/Command | Destroyed by M Guard with Hellfire Missile Launcher Last Messages --------------- 29624_ The unstable cave ceiling collapses. 29624_ K-01 Serf collects debris. 29625_ The unstable cave ceiling collapses. 29625_ Impulse Thruster Array destroyed. 29629_ K-01 Serf collects debris. 29631_ Slug penetrates Wall. 29632_ The unstable cave ceiling collapses. 29633_ K-01 Serf collects debris. 29634_ The unstable cave ceiling collapses. 29635_ Penetrated by Slug. 29636_ The unstable cave ceiling collapses. 29636_ Penetrated by Slug. 29637_ The unstable cave ceiling collapses. 29637_ K-01 Serf collects debris. 29638_ The unstable cave ceiling collapses. 29638_ Slug penetrates Wall. 29638_ Slug penetrates H-88 Terminator. 29638_ H-88 Terminator suffers critical hit. 29639_ The unstable cave ceiling collapses. 29639_ Penetrated by Slug. Map ----- +----------------------------------------------------+ | ########### ### ################### # | | ##?######## # # ################### # | | ###########= ########"################## # | | ########### ######## ####### # | | ########### ######## ####### # | | ###########= "####### ####### # | | ########### #"###### ####### # | | #################### + "" ####### # | | #################### # """" ############ | | #################### """" ############ | | #################### "" ############ | | #################### ############ | | #################### ############ | | #################### # ############ | | #################### # ############ | | #################### ### #"############ | | #################### ## ## ! ########## | | #################### ########## | | ###################; ########## | | #################### # ########## | | ### ### ###### ; # ########## | | ### ### ######## + ########## | | / ##### ########## | | / # ##### ########## | | / ! # ###### ########## | | =*!= / @* ##########"######### | | *!!%!/ % Y hgg g g m % % | | ###!!!##### # # h################ ### | | ###]=[#### k ############!### | | #####"#### ############!### | | ########### # # ############!### | | ########## # # * ############%### | | ########### # p % + #########+### | | ########## ## = %== ! ## ########**= | | ########### # ## ######## =! | | ########### = ^ ## ######## | | ########### # # #;#####;##+###### ######## | | ########### = # ############### = | | ########### # ## ! ##### | | ########### # ## #####+##+# | | ########### # ## "" + | | ########### # ## """ ##### #### | | ########### +%## "R #####+#### | | ########### # ## """ ### | | ##############+############## ## """ ### | | ############# ############## ## ### | | ############# ############## ## ### | | ############# ############# ##/######### | | ############# # ] ###### ###### "" | | ############# # ]###### ##### ###### """" | +----------------------------------------------------+ Best States ------------- Heat Dissipation 72 Energy Generation 70 Energy Capacity 1050 Matter Stores 500 Matter Capacity 500 Sight Range 20 Robot Scan Range 30 Terrain Scan Range 24 Terrain Scan Density 1010 ECM Strength 5 Jamming Range 16 Power Amplification 30 Additional Mass Support 20 EM Shielding 3 Armor Coverage 600 Resistance: TH 10 Resistance: EM 25 Propulsion Shielding 90 Utility Shielding 90 Phase Shifting 15 Evasion (%) 93 Targeting Accuracy 6 Melee Accuracy 8 Armor Integrity Analysis 66 Recoil Reduction 3 Overload Regulation 60 Offensive Hacking 62 Defensive Hacking 40 Item Schematics ----------------- Lrg. Storage Unit | -10/Materials | Hacked Cesium-ion Thruster | -9/Materials | Scanalyzed Med. Storage Unit | -9/Materials | Hacked Exp. Sensor Array | -8/Materials | Scanalyzed Cmb. Airjet | -8/Materials | Scanalyzed Hacking Suite | -8/Materials | Scanalyzed Imp. Propulsion Shielding | -8/Materials | Hacked Imp. Utility Shielding | -8/Materials | Hacked Lrn. Proton Cannon | -7/Factory | Hacked Kinetic Spear | -7/Data Miner | Free Cloaking Device | -7/Data Miner | Free Exp. Targeting Computer | -7/Data Miner | Free Exp. Terrain Scan Processor | -7/Data Miner | Free Lgt. Regenerative Plating | -7/Data Miner | Free Combat Drone Bay | -7/Data Miner | Free Exp. Propulsion Shielding | -6/Factory | Hacked Exp. Utility Shielding | -6/Factory | Hacked Imp. Powered Armor | -6/Factory | Hacked Cld. Plasma Cannon | -6/Factory | Scanalyzed Adv. Hacking Suite | -6/Factory | Hacked Nuclear Pulse Array | -6/Factory | Hacked Gravity Neutralizing Apparatus | -6/Factory | Scanalyzed Exp. Signal Interpreter | -6/Factory | Hacked Imp. System Restoration Module | -6/Factory | Scanalyzed Mni. Smartbomb Launcher | -5/Factory | Hacked Adv. Power Amplifier | -5/Factory | Hacked Adv. System Shield | -5/Factory | Hacked Nanoactuators | -5/Factory | Hacked Plasma Sword | -5/Factory | Scanalyzed Field Propulsion Array | -5/Factory | Hacked Mni. Fusion Reactor | -4/Factory | Hacked Adv. Reaction Control System | -4/Factory | Hacked Adv. Transmission Jammer | -4/Factory | Hacked Prc. Matter Filter | -4/Factory | Scanalyzed Adv. Melee Analysis Suite | -4/Factory | Scanalyzed Force Lance | -4/Factory | Hacked Adv. Phase Shifter | -3/Research | Hacked Adv. Force Field | -3/Research | Hacked Inertial Stasis Machine | -3/Testing | Scanalyzed Cld. Nuclear Pulse Thruster | -3/Testing | Scanalyzed Femtoactuators | -2/Quarantine | Hacked Impulse Thruster Array | -2/Quarantine | Hacked Field Propulsion Drive | -2/Quarantine | Scanalyzed Adv. Force Booster | -2/Section 7 | Hacked Robot Schematics ------------------ O-16 Technician | -9/Mines | Hacked I-36 Angel | -7/Data Miner | Free X-72 Disruptor | -7/Data Miner | Free G-50 Soldier | -7/Data Miner | Free S-27 Virus | -7/Data Miner | Free Fabricated ------------ Hacking Suite | x1 | -7/Factory Exp. Sensor Array | x1 | -7/Factory Exp. Utility Shielding | x1 | -6/Factory Adv. Hacking Suite | x1 | -6/Factory Exp. Terrain Scan Processor | x1 | -6/Factory Lgt. Regenerative Plating | x1 | -6/Factory Adv. Hacking Suite | x1 | -6/Factory Adv. Hacking Suite | x1 | -6/Factory Mni. Smartbomb Launcher | x1 | -5/Factory Impulse Thruster Array | x1 | -5/Factory | Preloaded Mni. Smartbomb Launcher | x1 | -5/Factory Exp. Propulsion Shielding | x1 | -5/Factory Exp. Propulsion Shielding | x1 | -4/Factory Plasma Sword | x1 | -4/Factory Force Lance | x1 | -3/Research Adv. Phase Shifter | x1 | -3/Research Force Lance | x1 | -3/Research Adv. Force Field | x2 | -3/Research Imp. Powered Armor | x1 | -3/Research Adv. Transmission Jammer | x1 | -2/Research Exp. Propulsion Shielding | x1 | -2/Research Mni. Fusion Reactor | x1 | -2/Research Adv. Melee Analysis Suite | x1 | -1/Access Alien Tech Used ----------------- Stasis Generator Phase Redirector Integrated Dissipator Integrity Redistributor Dimensional Node Initializer Core Membrane LRC Matter Compressor LRC Insulator LRC Energy Well High-powered Transdimensional Reconstructor Subatomic Replicator Achievements -------------- None Challenges ------------ None Game ------ Seed CooledCombatShredder Manual? 0 Play Time 06:37:14 Cumulative 608.6 hours Start 2021.06.23 @ 21:39:42 End 2021.06.24 @ 14:58:49 Sessions 21 Manual Loads 0 Difficulty Rogue Special Mode None Game No. 364 Rogue 364 Adventurer 0 Explorer 0 Win Type - Total 6 Types 4/0/1/0/1/0/0/0/0 Lore% 89 Gallery% 90 Achievement% 71 Wizard Run 0 Options --------- ASCII 0 Keyboard 0 Movement Mouse Keybinds 1 Fullscreen 2 Font 24/Smallcaps Map View 76x50 Tactical HUD 1 Map Filters NONE Filters NONE Steam 1 RUN: 139cad28-3daa-4835-b614-86dad4a9096d